[Event "Titled Tuesday Blitz March 01 Early 2022"]
[White "Lazavik, Denis"]
[Black "Mikhalsky, Vladimir"]
[WhiteFideId "13515110"]
[BlackFideId "14144352"]
[WhiteElo "2436"]
[BlackElo "2248"]
[Result "1-0"]
[Round "02"]
[TimeControl "180+1"]
[Date "2022.03.01"]
[WhiteClock "0:01:38"]
[BlackClock "0:00:38"]

1. d4 {[%clk 0:03:00]}  Nf6 {[%clk 0:02:59]} 2. c4 {[%clk 0:03:01]}  g6 {[%clk 0:02:58]} 3. g3 {[%clk 0:03:00]}  Bg7 {[%clk 0:02:58]} 4. Bg2 {[%clk 0:03:01]}  O-O {[%clk 0:02:59]} 5. Nf3 {[%clk 0:03:02]}  d6 {[%clk 0:02:59]} 6. O-O {[%clk 0:03:02]}  Nbd7 {[%clk 0:02:59]} 7. Nc3 {[%clk 0:03:03]}  e5 {[%clk 0:03:00]} 8. e4 {[%clk 0:03:03]}  c6 {[%clk 0:02:59]} 9. h3 {[%clk 0:03:04]}  Qb6 {[%clk 0:02:58]} 10. c5 {[%clk 0:02:59]}  dxc5 {[%clk 0:02:58]} 11. dxe5 {[%clk 0:02:59]}  Ne8 {[%clk 0:02:58]} 12. e6 {[%clk 0:02:52]}  fxe6 {[%clk 0:02:56]} 13. Ng5 {[%clk 0:02:52]}  Ne5 {[%clk 0:02:40]} 14. f4 {[%clk 0:02:50]}  Nf7 {[%clk 0:02:39]} 15. Nxf7 {[%clk 0:02:48]}  Rxf7 {[%clk 0:02:39]} 16. e5 {[%clk 0:02:48]}  Rd7 {[%clk 0:02:33]} 17. Qe2 {[%clk 0:02:45]}  Nc7 {[%clk 0:02:31]} 18. Be3 {[%clk 0:02:39]}  Bf8 {[%clk 0:02:23]} 19. Ne4 {[%clk 0:02:37]}  Nd5 {[%clk 0:02:21]} 20. Bf2 {[%clk 0:02:37]}  Qa6 {[%clk 0:01:50]} 21. Qxa6 {[%clk 0:02:34]}  bxa6 {[%clk 0:01:49]} 22. Bxc5 {[%clk 0:02:33]}  Rb8 {[%clk 0:01:38]} 23. b3 {[%clk 0:02:28]}  a5 {[%clk 0:01:37]} 24. Rac1 {[%clk 0:02:26]}  Ba6 {[%clk 0:01:34]} 25. Rfd1 {[%clk 0:02:25]}  a4 {[%clk 0:01:22]} 26. Bxf8 {[%clk 0:02:22]}  Kxf8 {[%clk 0:01:21]} 27. Nc5 {[%clk 0:02:22]}  Bc8 {[%clk 0:01:15]} 28. Nxe6+ {[%clk 0:02:16]}  Ke7 {[%clk 0:01:12]} 29. Nd4 {[%clk 0:02:15]}  Bb7 {[%clk 0:01:09]} 30. Nxc6+ {[%clk 0:02:05]}  Bxc6 {[%clk 0:01:08]} 31. Rxc6 {[%clk 0:02:05]}  axb3 {[%clk 0:01:05]} 32. axb3 {[%clk 0:01:50]}  Ne3 {[%clk 0:01:04]} 33. Rxd7+ {[%clk 0:01:46]}  Kxd7 {[%clk 0:01:03]} 34. Rc3 {[%clk 0:01:42]}  Nxg2 {[%clk 0:01:01]} 35. Kxg2 {[%clk 0:01:41]}  Rb4 {[%clk 0:00:59]} 36. Kf3 {[%clk 0:01:42]}  a5 {[%clk 0:00:58]} 37. Kg4 {[%clk 0:01:42]}  h6 {[%clk 0:00:56]} 38. h4 {[%clk 0:01:42]}  a4 {[%clk 0:00:51]} 39. bxa4 {[%clk 0:01:41]}  Rxa4 {[%clk 0:00:51]} 40. Rd3+ {[%clk 0:01:38]}  Ke7 {[%clk 0:00:50]} 41. Rd6 {[%clk 0:01:39]}  Kf7 {[%clk 0:00:50]} 42. h5 {[%clk 0:01:39]}  gxh5+ {[%clk 0:00:43]} 43. Kxh5 {[%clk 0:01:40]}  Ra3 {[%clk 0:00:43]} 44. Rf6+ {[%clk 0:01:39]}  Ke7 {[%clk 0:00:42]} 45. Rg6 {[%clk 0:01:38]}  Ra1 {[%clk 0:00:38]} 46. Kxh6 {[%clk 0:01:38]}  Rh1+ {[%clk 0:00:38]} 47. Kg5 {[%clk 0:01:38]}  Kf7 {[%clk 0:00:38]} 48. e6+ {[%clk 0:01:38]}  Ke7 {[%clk 0:00:38]} 49. f5 {[%clk 0:01:39]}  Kd6 {[%clk 0:00:38]} 50. Rg7 {[%clk 0:01:38]} 1-0


[Site "https://www.chess.com"]

[Event "Titled Tuesday Blitz March 01 Early 2022"]
[White "Li, Ben"]
[Black "Golubev, Mikhail"]
[WhiteFideId "2089980"]
[BlackFideId "14100983"]
[WhiteElo "2267"]
[BlackElo "2374"]
[Result "1/2-1/2"]
[Round "02"]
[TimeControl "180+1"]
[Date "2022.03.01"]
[WhiteClock "0:00:51"]
[BlackClock "0:00:12"]

1. d4 {[%clk 0:03:00]}  Nf6 {[%clk 0:02:57]} 2. c4 {[%clk 0:03:00]}  g6 {[%clk 0:02:52]} 3. Nc3 {[%clk 0:03:00]}  Bg7 {[%clk 0:02:52]} 4. e4 {[%clk 0:03:00]}  d6 {[%clk 0:02:51]} 5. Nf3 {[%clk 0:03:01]}  O-O {[%clk 0:02:51]} 6. h3 {[%clk 0:03:01]}  Na6 {[%clk 0:02:47]} 7. Bg5 {[%clk 0:03:01]}  c6 {[%clk 0:02:38]} 8. Be2 {[%clk 0:02:59]}  Nc7 {[%clk 0:02:29]} 9. Nd2 {[%clk 0:02:54]}  e5 {[%clk 0:02:16]} 10. d5 {[%clk 0:02:54]}  cxd5 {[%clk 0:02:13]} 11. cxd5 {[%clk 0:02:53]}  Bd7 {[%clk 0:02:01]} 12. O-O {[%clk 0:02:52]}  b5 {[%clk 0:02:01]} 13. b4 {[%clk 0:02:52]}  a5 {[%clk 0:01:56]} 14. a3 {[%clk 0:02:51]}  Qb8 {[%clk 0:01:54]} 15. Qb3 {[%clk 0:02:47]}  Qb7 {[%clk 0:01:50]} 16. Be3 {[%clk 0:02:39]}  a4 {[%clk 0:01:41]} 17. Qb1 {[%clk 0:02:37]}  Nh5 {[%clk 0:01:39]} 18. Bxh5 {[%clk 0:02:21]}  gxh5 {[%clk 0:01:40]} 19. Qd3 {[%clk 0:02:19]}  f5 {[%clk 0:01:37]} 20. f4 {[%clk 0:02:03]}  Rae8 {[%clk 0:01:10]} 21. fxe5 {[%clk 0:01:54]}  Bxe5 {[%clk 0:01:08]} 22. Bd4 {[%clk 0:01:53]}  fxe4 {[%clk 0:00:55]} 23. Ndxe4 {[%clk 0:01:50]}  Bf5 {[%clk 0:00:48]} 24. Bxe5 {[%clk 0:01:43]}  Rxe5 {[%clk 0:00:48]} 25. Qg3+ {[%clk 0:01:42]}  Kh8 {[%clk 0:00:44]} 26. Nxd6 {[%clk 0:01:43]}  Qb6+ {[%clk 0:00:44]} 27. Kh2 {[%clk 0:01:35]}  Qxd6 {[%clk 0:00:44]} 28. Rae1 {[%clk 0:01:34]}  Rxd5 {[%clk 0:00:26]} 29. Nxd5 {[%clk 0:01:32]}  Qxg3+ {[%clk 0:00:23]} 30. Kxg3 {[%clk 0:01:32]}  Nxd5 {[%clk 0:00:23]} 31. Re5 {[%clk 0:01:30]}  Rg8+ {[%clk 0:00:21]} 32. Kh2 {[%clk 0:01:29]}  Bd3 {[%clk 0:00:21]} 33. Rd1 {[%clk 0:01:18]}  Bc4 {[%clk 0:00:13]} 34. Rdxd5 {[%clk 0:01:18]}  Bxd5 {[%clk 0:00:13]} 35. Rxd5 {[%clk 0:01:18]}  Re8 {[%clk 0:00:13]} 36. Rxb5 {[%clk 0:01:09]}  Re3 {[%clk 0:00:13]} 37. Rxh5 {[%clk 0:01:09]}  Rxa3 {[%clk 0:00:12]} 38. Ra5 {[%clk 0:01:09]}  Ra1 {[%clk 0:00:11]} 39. Kg3 {[%clk 0:01:00]}  a3 {[%clk 0:00:10]} 40. Kh4 {[%clk 0:00:57]}  Rb1 {[%clk 0:00:10]} 41. Rxa3 {[%clk 0:00:57]}  Rxb4+ {[%clk 0:00:10]} 42. g4 {[%clk 0:00:57]}  Kg7 {[%clk 0:00:09]} 43. Ra7+ {[%clk 0:00:57]}  Kg6 {[%clk 0:00:09]} 44. Ra6+ {[%clk 0:00:57]}  Kg7 {[%clk 0:00:09]} 45. Kh5 {[%clk 0:00:58]}  Rb5+ {[%clk 0:00:08]} 46. g5 {[%clk 0:00:57]}  Rb7 {[%clk 0:00:08]} 47. h4 {[%clk 0:00:57]}  Rd7 {[%clk 0:00:09]} 48. Rb6 {[%clk 0:00:56]}  Rc7 {[%clk 0:00:08]} 49. Kg4 {[%clk 0:00:56]}  Rc4+ {[%clk 0:00:08]} 50. Kh5 {[%clk 0:00:57]}  Rc7 {[%clk 0:00:08]} 51. Rf6 {[%clk 0:00:57]}  Ra7 {[%clk 0:00:08]} 52. Rf4 {[%clk 0:00:56]}  Rb7 {[%clk 0:00:08]} 53. Kg4 {[%clk 0:00:57]}  h6 {[%clk 0:00:08]} 54. Kh5 {[%clk 0:00:55]}  hxg5 {[%clk 0:00:07]} 55. hxg5 {[%clk 0:00:56]}  Kh7 {[%clk 0:00:07]} 56. g6+ {[%clk 0:00:54]}  Kg7 {[%clk 0:00:07]} 57. Rf5 {[%clk 0:00:55]}  Rb2 {[%clk 0:00:06]} 58. Rf7+ {[%clk 0:00:54]}  Kg8 {[%clk 0:00:06]} 59. Ra7 {[%clk 0:00:52]}  Rh2+ {[%clk 0:00:05]} 60. Kg5 {[%clk 0:00:53]}  Rg2+ {[%clk 0:00:06]} 61. Kf6 {[%clk 0:00:53]}  Rf2+ {[%clk 0:00:06]} 62. Ke6 {[%clk 0:00:54]}  Re2+ {[%clk 0:00:06]} 63. Kf5 {[%clk 0:00:54]}  Rf2+ {[%clk 0:00:06]} 64. Kg4 {[%clk 0:00:54]}  Rg2+ {[%clk 0:00:06]} 65. Kh5 {[%clk 0:00:55]}  Rh2+ {[%clk 0:00:06]} 66. Kg5 {[%clk 0:00:55]}  Rg2+ {[%clk 0:00:07]} 67. Kf4 {[%clk 0:00:55]}  Rf2+ {[%clk 0:00:07]} 68. Ke5 {[%clk 0:00:54]}  Re2+ {[%clk 0:00:06]} 69. Kd6 {[%clk 0:00:54]}  Rd2+ {[%clk 0:00:06]} 70. Ke6 {[%clk 0:00:54]}  Re2+ {[%clk 0:00:07]} 71. Kd5 {[%clk 0:00:54]}  Rd2+ {[%clk 0:00:07]} 72. Ke5 {[%clk 0:00:55]}  Re2+ {[%clk 0:00:07]} 73. Kf4 {[%clk 0:00:55]}  Rf2+ {[%clk 0:00:07]} 74. Kg3 {[%clk 0:00:56]}  Rf6 {[%clk 0:00:07]} 75. g7 {[%clk 0:00:55]}  Rg6+ {[%clk 0:00:08]} 76. Kf4 {[%clk 0:00:55]}  Rxg7 {[%clk 0:00:08]} 77. Ra8+ {[%clk 0:00:55]}  Kh7 {[%clk 0:00:08]} 78. Kf5 {[%clk 0:00:56]}  Rg8 {[%clk 0:00:08]} 79. Ra7+ {[%clk 0:00:56]}  Rg7 {[%clk 0:00:08]} 80. Ra1 {[%clk 0:00:56]}  Rf7+ {[%clk 0:00:09]} 81. Ke6 {[%clk 0:00:56]}  Rg7 {[%clk 0:00:09]} 82. Kf6 {[%clk 0:00:56]}  Rg6+ {[%clk 0:00:08]} 83. Kf5 {[%clk 0:00:57]}  Rg7 {[%clk 0:00:09]} 84. Rh1+ {[%clk 0:00:57]}  Kg8 {[%clk 0:00:09]} 85. Kf6 {[%clk 0:00:57]}  Rf7+ {[%clk 0:00:09]} 86. Kg6 {[%clk 0:00:57]}  Rg7+ {[%clk 0:00:09]} 87. Kf6 {[%clk 0:00:57]}  Rf7+ {[%clk 0:00:10]} 88. Ke6 {[%clk 0:00:58]}  Rg7 {[%clk 0:00:10]} 89. Rf1 {[%clk 0:00:57]}  Rg6+ {[%clk 0:00:11]} 90. Ke7 {[%clk 0:00:57]}  Rg7+ {[%clk 0:00:11]} 91. Ke8 {[%clk 0:00:58]}  Kh7 {[%clk 0:00:11]} 92. Kf8 {[%clk 0:00:54]}  Rg8+ {[%clk 0:00:10]} 93. Kf7 {[%clk 0:00:54]}  Rg7+ {[%clk 0:00:11]} 94. Kf6 {[%clk 0:00:53]}  Rg6+ {[%clk 0:00:11]} 95. Kf5 {[%clk 0:00:54]}  Rg7 {[%clk 0:00:12]} 96. Rh1+ {[%clk 0:00:53]}  Kg8 {[%clk 0:00:12]} 97. Ke6 {[%clk 0:00:54]}  Rg6+ {[%clk 0:00:12]} 98. Ke7 {[%clk 0:00:51]}  Rg7+ {[%clk 0:00:12]} 99. Kf6 {[%clk 0:00:51]} 1/2-1/2


[Site "https://www.chess.com"]

[Event "Titled Tuesday Blitz March 01 Early 2022"]
[White "Lima, Kleyton Alcantara"]
[Black "Shtyka, Sergey"]
[WhiteFideId "22718397"]
[BlackFideId "4138465"]
[WhiteElo "1951"]
[BlackElo "2014"]
[Result "1/2-1/2"]
[Round "02"]
[TimeControl "180+1"]
[Date "2022.03.01"]
[WhiteClock "0:00:14"]
[BlackClock "0:00:08"]

1. e4 {[%clk 0:03:00]}  c5 {[%clk 0:02:59]} 2. Nf3 {[%clk 0:03:00]}  d6 {[%clk 0:02:58]} 3. d4 {[%clk 0:03:00]}  cxd4 {[%clk 0:02:59]} 4. Nxd4 {[%clk 0:03:01]}  Nf6 {[%clk 0:03:00]} 5. Nc3 {[%clk 0:03:01]}  g6 {[%clk 0:03:00]} 6. Be3 {[%clk 0:03:01]}  Bg7 {[%clk 0:02:59]} 7. f3 {[%clk 0:03:01]}  O-O {[%clk 0:02:59]} 8. Qd2 {[%clk 0:03:00]}  Nc6 {[%clk 0:03:00]} 9. O-O-O {[%clk 0:03:00]}  d5 {[%clk 0:03:00]} 10. Qe1 {[%clk 0:03:00]}  e5 {[%clk 0:02:55]} 11. Nxc6 {[%clk 0:02:57]}  bxc6 {[%clk 0:02:56]} 12. exd5 {[%clk 0:02:58]}  cxd5 {[%clk 0:02:50]} 13. Bg5 {[%clk 0:02:57]}  d4 {[%clk 0:02:45]} 14. Qxe5 {[%clk 0:02:47]}  h6 {[%clk 0:02:24]} 15. Rxd4 {[%clk 0:01:50]}  Qe8 {[%clk 0:01:41]} 16. Bxf6 {[%clk 0:01:46]}  Qxe5 {[%clk 0:01:37]} 17. Bxe5 {[%clk 0:01:46]}  Bxe5 {[%clk 0:01:38]} 18. Rd1 {[%clk 0:01:44]}  Bxc3 {[%clk 0:01:25]} 19. bxc3 {[%clk 0:01:45]}  Be6 {[%clk 0:01:25]} 20. c4 {[%clk 0:01:42]}  Rfc8 {[%clk 0:01:22]} 21. Rd4 {[%clk 0:01:42]}  Rc5 {[%clk 0:01:20]} 22. Bd3 {[%clk 0:01:39]}  Rac8 {[%clk 0:01:19]} 23. Re1 {[%clk 0:01:38]}  Kf8 {[%clk 0:01:08]} 24. Bxg6 {[%clk 0:01:37]}  Bxc4 {[%clk 0:01:06]} 25. Be4 {[%clk 0:01:27]}  Bxa2 {[%clk 0:01:05]} 26. Ra4 {[%clk 0:01:25]}  Bb3 {[%clk 0:01:02]} 27. Rxa7 {[%clk 0:01:25]}  Bxc2 {[%clk 0:01:02]} 28. Kd2 {[%clk 0:01:12]}  Bxe4 {[%clk 0:00:53]} 29. Rxe4 {[%clk 0:01:13]}  Rc2+ {[%clk 0:00:52]} 30. Ke3 {[%clk 0:01:11]}  Rxg2 {[%clk 0:00:52]} 31. Rf4 {[%clk 0:01:08]}  Re8+ {[%clk 0:00:43]} 32. Kd3 {[%clk 0:01:06]}  Re7 {[%clk 0:00:42]} 33. Rxe7 {[%clk 0:01:04]}  Kxe7 {[%clk 0:00:42]} 34. Rh4 {[%clk 0:01:04]}  Rg6 {[%clk 0:00:40]} 35. Ke4 {[%clk 0:01:04]}  Ke6 {[%clk 0:00:38]} 36. f4 {[%clk 0:01:01]}  f5+ {[%clk 0:00:38]} 37. Kf3 {[%clk 0:01:00]}  Kf6 {[%clk 0:00:36]} 38. Rh3 {[%clk 0:00:59]}  Kg7 {[%clk 0:00:30]} 39. Rh5 {[%clk 0:00:48]}  Rf6 {[%clk 0:00:29]} 40. Ke3 {[%clk 0:00:45]}  Kg6 {[%clk 0:00:26]} 41. Rh3 {[%clk 0:00:43]}  Ra6 {[%clk 0:00:27]} 42. Rg3+ {[%clk 0:00:40]}  Kf6 {[%clk 0:00:27]} 43. Kf2 {[%clk 0:00:35]}  Ra2+ {[%clk 0:00:26]} 44. Kf3 {[%clk 0:00:34]}  Rxh2 {[%clk 0:00:25]} 45. Rg8 {[%clk 0:00:34]}  Rh3+ {[%clk 0:00:24]} 46. Kf2 {[%clk 0:00:32]}  Ra3 {[%clk 0:00:23]} 47. Rb8 {[%clk 0:00:30]}  Kg6 {[%clk 0:00:22]} 48. Rg8+ {[%clk 0:00:30]}  Kh5 {[%clk 0:00:22]} 49. Rf8 {[%clk 0:00:30]}  Kg4 {[%clk 0:00:22]} 50. Rh8 {[%clk 0:00:30]}  h5 {[%clk 0:00:21]} 51. Rb8 {[%clk 0:00:30]}  Kxf4 {[%clk 0:00:20]} 52. Kg2 {[%clk 0:00:31]}  Kg4 {[%clk 0:00:19]} 53. Rg8+ {[%clk 0:00:30]}  Kf4 {[%clk 0:00:20]} 54. Rb8 {[%clk 0:00:31]}  Ra2+ {[%clk 0:00:20]} 55. Kh3 {[%clk 0:00:20]}  Re2 {[%clk 0:00:20]} 56. Rb4+ {[%clk 0:00:17]}  Re4 {[%clk 0:00:18]} 57. Rb8 {[%clk 0:00:17]}  Re1 {[%clk 0:00:18]} 58. Kg2 {[%clk 0:00:17]}  h4 {[%clk 0:00:17]} 59. Rb4+ {[%clk 0:00:16]}  Re4 {[%clk 0:00:16]} 60. Rb8 {[%clk 0:00:17]}  Kg4 {[%clk 0:00:16]} 61. Kf2 {[%clk 0:00:17]}  h3 {[%clk 0:00:15]} 62. Rg8+ {[%clk 0:00:17]}  Kf4 {[%clk 0:00:15]} 63. Rh8 {[%clk 0:00:17]}  Kg4 {[%clk 0:00:13]} 64. Rg8+ {[%clk 0:00:17]}  Kf4 {[%clk 0:00:13]} 65. Rh8 {[%clk 0:00:18]}  Rd4 {[%clk 0:00:11]} 66. Rh4+ {[%clk 0:00:14]}  Ke5 {[%clk 0:00:10]} 67. Rxh3 {[%clk 0:00:15]}  Rd2+ {[%clk 0:00:09]} 68. Ke3 {[%clk 0:00:15]}  Ra2 {[%clk 0:00:10]} 69. Rh8 {[%clk 0:00:15]}  Ra3+ {[%clk 0:00:10]} 70. Kf2 {[%clk 0:00:15]}  Kf4 {[%clk 0:00:10]} 71. Rb8 {[%clk 0:00:14]}  Ra2+ {[%clk 0:00:10]} 72. Kf1 {[%clk 0:00:15]}  Kg4 {[%clk 0:00:10]} 73. Rb3 {[%clk 0:00:15]}  f4 {[%clk 0:00:10]} 74. Rc3 {[%clk 0:00:15]}  Rb2 {[%clk 0:00:10]} 75. Ra3 {[%clk 0:00:14]}  Rc2 {[%clk 0:00:10]} 76. Rb3 {[%clk 0:00:14]}  Ra2 {[%clk 0:00:10]} 77. Rc3 {[%clk 0:00:15]}  Rd2 {[%clk 0:00:07]} 78. Ra3 {[%clk 0:00:15]}  Kf5 {[%clk 0:00:08]} 79. Rb3 {[%clk 0:00:14]}  Ke4 {[%clk 0:00:08]} 80. Ra3 {[%clk 0:00:14]}  Rb2 {[%clk 0:00:07]} 81. Ra4+ {[%clk 0:00:13]}  Kf3 {[%clk 0:00:07]} 82. Ra3+ {[%clk 0:00:13]}  Kg4 {[%clk 0:00:07]} 83. Rc3 {[%clk 0:00:13]}  Ra2 {[%clk 0:00:07]} 84. Rb3 {[%clk 0:00:13]}  f3 {[%clk 0:00:07]} 85. Rb8 {[%clk 0:00:13]}  Ra1+ {[%clk 0:00:07]} 86. Kf2 {[%clk 0:00:13]}  Ra2+ {[%clk 0:00:08]} 87. Kf1 {[%clk 0:00:14]}  Ra1+ {[%clk 0:00:07]} 88. Kf2 {[%clk 0:00:14]}  Ra2+ {[%clk 0:00:08]} 89. Kf1 {[%clk 0:00:14]} 1/2-1/2


[Site "https://www.chess.com"]

[Event "Titled Tuesday Blitz March 01 Early 2022"]
[White "Maltsevskaya, Aleksandra"]
[Black "Abdrlauf, Elham"]
[WhiteFideId "24174041"]
[BlackFideId "1533533"]
[WhiteElo "2283"]
[BlackElo "2334"]
[Result "1-0"]
[Round "02"]
[TimeControl "180+1"]
[Date "2022.03.01"]
[WhiteClock "0:00:07"]
[BlackClock "0:00:02"]

1. Nf3 {[%clk 0:02:59]}  Nf6 {[%clk 0:02:59]} 2. g3 {[%clk 0:02:59]}  g6 {[%clk 0:02:59]} 3. Bg2 {[%clk 0:02:59]}  Bg7 {[%clk 0:03:00]} 4. O-O {[%clk 0:03:00]}  O-O {[%clk 0:03:01]} 5. d4 {[%clk 0:03:00]}  d5 {[%clk 0:03:01]} 6. c4 {[%clk 0:03:00]}  c5 {[%clk 0:03:00]} 7. cxd5 {[%clk 0:02:45]}  cxd4 {[%clk 0:02:53]} 8. Nxd4 {[%clk 0:02:42]}  Nxd5 {[%clk 0:02:52]} 9. Nc3 {[%clk 0:02:42]}  Nxc3 {[%clk 0:02:50]} 10. bxc3 {[%clk 0:02:43]}  Qa5 {[%clk 0:02:48]} 11. Qb3 {[%clk 0:02:37]}  Nd7 {[%clk 0:02:39]} 12. Be3 {[%clk 0:02:37]}  Qh5 {[%clk 0:02:33]} 13. Bf3 {[%clk 0:02:33]}  Qh3 {[%clk 0:02:25]} 14. Bg2 {[%clk 0:02:32]}  Qh5 {[%clk 0:02:23]} 15. Qb5 {[%clk 0:01:14]}  Ne5 {[%clk 0:02:08]} 16. Rfd1 {[%clk 0:00:51]}  Rd8 {[%clk 0:01:43]} 17. Bf4 {[%clk 0:00:46]}  a6 {[%clk 0:01:19]} 18. Qb6 {[%clk 0:00:42]}  Bd7 {[%clk 0:01:07]} 19. Nf3 {[%clk 0:00:26]}  Nc4 {[%clk 0:00:34]} 20. Qc7 {[%clk 0:00:24]}  Qb5 {[%clk 0:00:17]} 21. Rab1 {[%clk 0:00:21]}  Qc6 {[%clk 0:00:14]} 22. Rxb7 {[%clk 0:00:22]}  Qxc7 {[%clk 0:00:14]} 23. Bxc7 {[%clk 0:00:23]}  Bc6 {[%clk 0:00:12]} 24. Bxd8 {[%clk 0:00:21]}  Bxb7 {[%clk 0:00:12]} 25. Bxe7 {[%clk 0:00:21]}  Rc8 {[%clk 0:00:07]} 26. Nd4 {[%clk 0:00:19]}  Bxg2 {[%clk 0:00:06]} 27. Kxg2 {[%clk 0:00:20]}  h5 {[%clk 0:00:04]} 28. Rb1 {[%clk 0:00:20]}  Nd2 {[%clk 0:00:04]} 29. Rb2 {[%clk 0:00:19]}  Ne4 {[%clk 0:00:04]} 30. Rb6 {[%clk 0:00:17]}  Nxc3 {[%clk 0:00:04]} 31. Nc6 {[%clk 0:00:15]}  Nd5 {[%clk 0:00:04]} 32. Rxa6 {[%clk 0:00:15]}  Kh7 {[%clk 0:00:01]} 33. Bg5 {[%clk 0:00:14]}  Nc3 {[%clk 0:00:02]} 34. e3 {[%clk 0:00:13]}  Nd5 {[%clk 0:00:02]} 35. Bf4 {[%clk 0:00:13]}  Nf6 {[%clk 0:00:01]} 36. Nd4 {[%clk 0:00:11]}  Ne4 {[%clk 0:00:02]} 37. Nf3 {[%clk 0:00:11]}  f6 {[%clk 0:00:02]} 38. Ra4 {[%clk 0:00:10]}  Re8 {[%clk 0:00:03]} 39. h4 {[%clk 0:00:10]}  Bf8 {[%clk 0:00:02]} 40. Rc4 {[%clk 0:00:10]}  f5 {[%clk 0:00:02]} 41. Ng5+ {[%clk 0:00:10]}  Nxg5 {[%clk 0:00:03]} 42. Bxg5 {[%clk 0:00:11]}  Ra8 {[%clk 0:00:03]} 43. Rc7+ {[%clk 0:00:11]}  Kg8 {[%clk 0:00:04]} 44. Rc6 {[%clk 0:00:10]}  Kf7 {[%clk 0:00:04]} 45. Rf6+ {[%clk 0:00:10]}  Kg7 {[%clk 0:00:05]} 46. Rc6 {[%clk 0:00:07]}  Rxa2 {[%clk 0:00:05]} 47. Bf6+ {[%clk 0:00:07]}  Kf7 {[%clk 0:00:05]} 48. Bd4 {[%clk 0:00:07]}  Rd2 {[%clk 0:00:04]} 49. Rf6+ {[%clk 0:00:07]}  Kg7 {[%clk 0:00:04]} 50. Rxf5+ {[%clk 0:00:08]}  Rxd4 {[%clk 0:00:04]} 51. Rxf8 {[%clk 0:00:08]}  Rd7 {[%clk 0:00:03]} 52. Ra8 {[%clk 0:00:09]}  Re7 {[%clk 0:00:04]} 53. Ra4 {[%clk 0:00:10]}  Rf7 {[%clk 0:00:04]} 54. f4 {[%clk 0:00:10]}  Re7 {[%clk 0:00:05]} 55. Kf3 {[%clk 0:00:10]}  Rc7 {[%clk 0:00:04]} 56. Ra6 {[%clk 0:00:11]}  Rd7 {[%clk 0:00:04]} 57. g4 {[%clk 0:00:11]}  hxg4+ {[%clk 0:00:04]} 58. Kxg4 {[%clk 0:00:12]}  Re7 {[%clk 0:00:04]} 59. Ra3 {[%clk 0:00:12]}  Kh6 {[%clk 0:00:04]} 60. Rc3 {[%clk 0:00:07]}  Ra7 {[%clk 0:00:03]} 61. e4 {[%clk 0:00:07]}  Ra1 {[%clk 0:00:03]} 62. Rg3 {[%clk 0:00:06]}  Re1 {[%clk 0:00:03]} 63. e5 {[%clk 0:00:07]}  Rf1 {[%clk 0:00:02]} 64. Rg2 {[%clk 0:00:07]}  Re1 {[%clk 0:00:02]} 65. Kg3 {[%clk 0:00:06]}  Kh5 {[%clk 0:00:03]} 66. Kf3 {[%clk 0:00:06]}  Rf1+ {[%clk 0:00:03]} 67. Ke4 {[%clk 0:00:07]}  Re1+ {[%clk 0:00:03]} 68. Kd5 {[%clk 0:00:08]}  Rd1+ {[%clk 0:00:02]} 69. Ke6 {[%clk 0:00:08]}  Kh6 {[%clk 0:00:02]} 70. f5 {[%clk 0:00:07]}  gxf5 {[%clk 0:00:03]} 71. Kxf5 {[%clk 0:00:08]}  Ra1 {[%clk 0:00:02]} 72. Kf6 {[%clk 0:00:07]}  Ra2 {[%clk 0:00:01]} 73. Rxa2 {[%clk 0:00:07]}  Kh5 {[%clk 0:00:02]} 74. e6 {[%clk 0:00:07]} 1-0


[Site "https://www.chess.com"]

[Event "Titled Tuesday Blitz March 01 Early 2022"]
[White "Manelyuk, Daniil"]
[Black "San, Thit Lwin"]
[WhiteFideId "44173920"]
[BlackFideId "13001272"]
[WhiteElo "2222"]
[BlackElo "2232"]
[Result "1-0"]
[Round "02"]
[TimeControl "180+1"]
[Date "2022.03.01"]
[WhiteClock "0:00:11"]
[BlackClock "0:00:01"]

1. e4 {[%clk 0:03:00]}  Nf6 {[%clk 0:03:00]} 2. e5 {[%clk 0:02:56]}  Nd5 {[%clk 0:03:01]} 3. Nf3 {[%clk 0:02:57]}  d6 {[%clk 0:03:01]} 4. exd6 {[%clk 0:02:57]}  cxd6 {[%clk 0:03:01]} 5. Bc4 {[%clk 0:02:49]}  Nb6 {[%clk 0:03:00]} 6. Bb3 {[%clk 0:02:46]}  d5 {[%clk 0:03:00]} 7. O-O {[%clk 0:02:46]}  Nc6 {[%clk 0:03:00]} 8. d3 {[%clk 0:02:41]}  Bg4 {[%clk 0:02:53]} 9. h3 {[%clk 0:02:41]}  Bh5 {[%clk 0:02:53]} 10. Be3 {[%clk 0:02:36]}  e6 {[%clk 0:02:51]} 11. c3 {[%clk 0:02:05]}  Be7 {[%clk 0:02:51]} 12. Nbd2 {[%clk 0:02:05]}  O-O {[%clk 0:02:49]} 13. Bc2 {[%clk 0:02:04]}  Rc8 {[%clk 0:02:48]} 14. Qb1 {[%clk 0:02:02]}  Bg6 {[%clk 0:02:43]} 15. a4 {[%clk 0:01:48]}  a5 {[%clk 0:02:20]} 16. Qa2 {[%clk 0:01:37]}  Qc7 {[%clk 0:01:48]} 17. Nb3 {[%clk 0:01:24]}  Nd7 {[%clk 0:01:41]} 18. Nbd4 {[%clk 0:01:21]}  Nxd4 {[%clk 0:01:24]} 19. Nxd4 {[%clk 0:01:20]}  Nc5 {[%clk 0:01:05]} 20. Nb5 {[%clk 0:01:17]}  Qd7 {[%clk 0:01:01]} 21. Rfd1 {[%clk 0:00:55]}  e5 {[%clk 0:00:58]} 22. Rac1 {[%clk 0:00:48]}  Bf6 {[%clk 0:00:22]} 23. d4 {[%clk 0:00:37]}  exd4 {[%clk 0:00:17]} 24. Bxd4 {[%clk 0:00:33]}  Bxc2 {[%clk 0:00:12]} 25. Rxc2 {[%clk 0:00:32]}  Bxd4 {[%clk 0:00:09]} 26. Rxd4 {[%clk 0:00:31]}  Rfd8 {[%clk 0:00:09]} 27. Rcd2 {[%clk 0:00:27]}  Qf5 {[%clk 0:00:06]} 28. Rxd5 {[%clk 0:00:20]}  Rxd5 {[%clk 0:00:03]} 29. Rxd5 {[%clk 0:00:20]}  Qe6 {[%clk 0:00:02]} 30. Qc4 {[%clk 0:00:17]}  Ne4 {[%clk 0:00:01]} 31. Nc7 {[%clk 0:00:11]} 1-0


[Site "https://www.chess.com"]